Cogmind - Beta 10.2 *** ADVENTURER MODE // 2022.02.26 @ 21:45:28 Player: drchaos820 Result: Self-destructed Performance ------------- Evolutions (0) 0 Regions Visited (4) 800 Robots Destroyed (2) 10 Value Destroyed (81) 81 Prototype IDs (3) 60 Alien Tech Used (0) 0 Bonus (288) 288 TOTAL SCORE: 1239 Bonus ------- Aligned with FarCom 300 Friendly Fire -12 Cogmind --------- Core Integrity 250/250 Matter 184/300 Energy 125/125 System Corruption 0% Temperature Cool (0) Movement Walking (240) Ox4 Location -9/Mines Parts ------- > --- POWER (1) -------- Light Ion Engine > --- PROPULSION (2) --- Aluminum Leg Aluminum Leg > --- UTILITY (2) ------ Humpback > --- WEAPON (2) ------- Medium Laser Assault Rifle > --- INVENTORY (24) --- Light Ion Engine Aluminum Leg Aluminum Leg Small Storage Unit Cloak of Protection Peak State ------------ > --- POWER ------------ Light Ion Engine > --- PROPULSION ------- Aluminum Leg Aluminum Leg > --- UTILITY ---------- Cloak of Protection Supersonic Drone Bay > --- WEAPON ----------- Medium Laser Assault Rifle > --- INVENTORY -------- Light Ion Engine Aluminum Leg Aluminum Leg Small Storage Unit [Rating: 21] Favorites ----------- Power Light Ion Engine Engine Light Ion Engine Propulsion Aluminum Leg Leg Aluminum Leg Utility Small Storage Unit Device Supersonic Drone Bay Storage Small Storage Unit Protection Light Armor Plating Weapon Medium Laser Energy Gun Medium Laser Ballistic Gun Assault Rifle Build | -11 -10 -10 -10 -9 ------- Run | Scr Mat Min Exi Min Slots Evolved . | . . . . . Power . | . . . . . Propulsion . | . . . . . Utility . | . . . . . Weapon . | . . . . . Parts Attached 14 | 6 1 . 4 3 Power 1 | 1 . . . . Engine 1 | 1 . . . . Core . | . . . . . Reactor . | . . . . . Propulsion 2 | 2 . . . . Treads . | . . . . . Leg 2 | 2 . . . . Wheel . | . . . . . Hover . | . . . . . Flight . | . . . . . Utility 9 | 1 1 . 4 3 Device 5 | . . . 3 2 Storage 3 | 1 . . 1 1 Processor . | . . . . . Hackware . | . . . . . Protection 1 | . 1 . . . Artifact . | . . . . . Weapon 2 | 2 . . . . Energy Gun 1 | 1 . . . . Energy Cannon . | . . . . . Ballistic Gun 1 | 1 . . . . Ballistic Cannon . | . . . . . Launcher . | . . . . . Special Weapon . | . . . . . Impact Weapon . | . . . . . Slashing Weapon . | . . . . . Piercing Weapon . | . . . . . Special Melee Weapon . | . . . . . Unidentified Prototypes 3 | . . . 3 . Parts Lost . | . . . . . Power . | . . . . . Propulsion . | . . . . . Utility . | . . . . . Weapon . | . . . . . Highest Loss Streak . | . . . . . Average Slot Usage (%) 95 | . 98 100 96 85 Engine 14 | . 14 14 14 14 Leg 28 | . 28 28 28 28 Device 2 | . . . 4 3 Storage 13 | . 14 14 14 11 Protection 7 | . 12 14 6 . Energy Gun 14 | . 14 14 14 14 Ballistic Gun 14 | . 14 14 14 14 Naked Turns . | . . . . . Heaviest Build 87 | 11 14 14 87 87 Greatest Support 20 | 20 20 20 20 20 Greatest Overweight (x) 4 | 1 . . 4 4 Average Overweight (x) . | . . . . 3 Largest Inventory Capacity 24 | 6 6 6 24 24 Average Capacity 9 | 5 6 6 9 19 Most Carried 8 | 2 6 6 8 8 Average Carried 5 | . 3 6 6 5 Final Capacity 24 | 6 6 6 24 24 Final Carried 8 | 2 6 6 8 5 Class Distribution -------------------- 79% | Mutant 20% | Hauler-Mutant Dominant Class ---------------- Mutant | -10/Materials Mutant | -10/Mines Mutant | -10/Exiles Hauler-Mutant | -9/Mines Resources | -11 -10 -10 -10 -9 ----------- Run | Scr Mat Min Exi Min Matter Collected 251 | 203 48 . . . Remotely . | . . . . . Salvage Created 86 | . 86 . . . Parts 5 | . 5 . . . Haulers Intercepted . | . . . . . Recyclers Shooed . | . . . . . Parts Field Recycled . | . . . . . Retrieved Matter . | . . . . . Parts Self-Destructed . | . . . . . Prevented . | . . . . . Kills | -11 -10 -10 -10 -9 ------- Run | Scr Mat Min Exi Min Combat Hostiles Destroyed 2 | . 2 . . . Guns 2 | . 2 . . . Classes Destroyed 1 | . 1 . . . Grunt 2 | . 2 . . . Best Kill Streak 2 | . 2 . . . Combat Bots Only 2 | . 2 . . . Max Kills in Single Turn 1 | . 1 . . . Gunslinging . | . . . . . Exploded . | . . . . . Melee . | . . . . . Uniques/NPCs Destroyed . | . . . . . Combat | -11 -10 -10 -10 -9 -------- Run | Scr Mat Min Exi Min Damage Taken 62 | . 62 . . . Core . | . . . . . Absorbed by Shields . | . . . . . Core Remaining (%) 100 | 100 . . . . Volleys Fired 9 | . 6 . . 3 Largest 2 | . 2 . . 2 Hottest 70 | . 70 . . 70 Shots Fired 18 | . 12 . . 6 Gun 18 | . 12 . . 6 Cannon . | . . . . . Launcher . | . . . . . Special . | . . . . . Kinetic 9 | . 6 . . 3 Thermal 9 | . 6 . . 3 Explosive . | . . . . . Electromagnetic . | . . . . . Robot Hit Streak 13 | . 8 . . 13 Robot Miss Streak 1 | . 1 . . 1 Penetration Max . | . . . . . Secondary Targets . | . . . . . Shots Hit Robots 14 | . 9 . . 5 Core Hits 6 | . 5 . . 1 Critical Hits . | . . . . . Critical Kills . | . . . . . Critical Parts Destroyed . | . . . . . Melee Attacks . | . . . . . Impact . | . . . . . Slashing . | . . . . . Piercing . | . . . . . Sneak Attacks . | . . . . . Combat Hostiles . | . . . . . Follow-up Attacks . | . . . . . Damage Inflicted 172 | . 111 . . 61 Guns 172 | . 111 . . 61 Cannons . | . . . . . Explosions . | . . . . . Melee . | . . . . . Ramming . | . . . . . Kinetic 60 | . 36 . . 24 Thermal 112 | . 75 . . 37 Explosive . | . . . . . Electromagnetic . | . . . . . Impact . | . . . . . Slashing . | . . . . . Piercing . | . . . . . Highest Corruption . | . . . . . Average Corruption . | . . . . . Corruption Purged . | . . . . . Overload Shots . | . . . . . Overflow Damage . | . . . . . Projectiles . | . . . . . Explosions . | . . . . . Melee . | . . . . . Knockbacks . | . . . . . Impact . | . . . . . Kinetic . | . . . . . Secondary . | . . . . . Self-Inflicted Damage . | . . . . . Shots . | . . . . . Rammed . | . . . . . Targets Rammed . | . . . . . Kicked . | . . . . . Crushed . | . . . . . Highest Temperature 108 | . 108 . . 9 Average Temperature 36 | . 47 . . 6 Received Heat Transfer 48 | . 48 . . . Siege Activations . | . . . . . Robots Corrupted . | . . . . . Combat Hostiles . | . . . . . Parts Fried . | . . . . . Impact Corruptions . | . . . . . Robots Melted . | . . . . . Combat Hostiles . | . . . . . Parts Melted 1 | . 1 . . . Heat Transferred 333 | . 222 . . 111 Parts Sabotaged . | . . . . . Parts Stolen . | . . . . . Parts Stripped . | . . . . . Power Chain Reactions . | . . . . . Missiles Intercepted . | . . . . . Alert | -11 -10 -10 -10 -9 ------- Run | Scr Mat Min Exi Min Peak Influence 65 | . 65 21 . . Initial 21 | . . 21 . . Average 12 | . 22 21 . . Maximum Alert Level . | . . . . . Low Security (%) 100 | 100 100 100 . 100 Level 1 . | . . . . . Level 2 . | . . . . . Level 3 . | . . . . . Level 4 . | . . . . . Level 5 . | . . . . . High Security . | . . . . . Max Security . | . . . . . Squads Dispatched . | . . . . . Investigation . | . . . . . Extermination . | . . . . . Reinforcement . | . . . . . Assault . | . . . . . Garrison . | . . . . . Intercept . | . . . . . Construction Impeded . | . . . . . Haulers Reinforced . | . . . . . Stealth | -11 -10 -10 -10 -9 --------- Run | Scr Mat Min Exi Min Distress Signals 1 | . 1 . . . Communications Jammed . | . . . . . Distress Signals . | . . . . . Times Spotted 14 | . 3 . . 11 Peak Tracking Total 13 | . 3 . . 13 Tactical Retreats . | . . . . . Traps | -11 -10 -10 -10 -9 ------- Run | Scr Mat Min Exi Min Traps Triggered . | . . . . . Indirectly . | . . . . . Trap Hack Attempts . | . . . . . Triggered . | . . . . . Disarmed . | . . . . . Reprogrammed . | . . . . . Reused . | . . . . . Traps Extracted . | . . . . . Installed . | . . . . . Triggered . | . . . . . Machines | -11 -10 -10 -10 -9 ---------- Run | Scr Mat Min Exi Min Machines Disabled . | . . . . . Max in Single Turn . | . . . . . Machines Sabotaged . | . . . . . Garrisons Compromised . | . . . . . Overloaded Fab Kills . | . . . . . Fab Network Shutdowns . | . . . . . Hacking | -11 -10 -10 -10 -9 --------- Run | Scr Mat Min Exi Min Machines Accessed 3 | . 2 . 1 . Terminals 2 | . 2 . . . Fabricators . | . . . . . Repair Stations . | . . . . . Recycling Units . | . . . . . Scanalyzers . | . . . . . Garrison Access . | . . . . . Total Hacks 15 | . 6 . 9 . Successful 10 | . 1 . 9 . Failed 5 | . 5 . . . Catastrophic 2 | . 2 . . . Database Lockouts . | . . . . . Manual 7 | . 6 . 1 . Terminals 6 | . 6 . . . Fabricators . | . . . . . Repair Stations . | . . . . . Recycling Units . | . . . . . Scanalyzers . | . . . . . Garrison Access . | . . . . . Terminal Hacks 10 | . 1 . 9 . Record 9 | . . . 9 . Branch Access Points 1 | . 1 . . . Fabricator Hacks . | . . . . . Repair Station Hacks . | . . . . . Recycling Unit Hacks . | . . . . . Scanalyzer . | . . . . . Garrison Access Hacks . | . . . . . Unauthorized Hacks . | . . . . . Terminals . | . . . . . Fabricators . | . . . . . Repair Stations . | . . . . . Recycling Units . | . . . . . Scanalyzers . | . . . . . Garrison Access . | . . . . . Data Cores Recovered . | . . . . . Used . | . . . . . Hacking Detections 2 | . 2 . . . Full Trace Events 2 | . 2 . . . Feedback Events . | . . . . . Feedback Blocked . | . . . . . Robot Schematics Acquired . | . . . . . Robots Built . | . . . . . Matter . | . . . . . Time . | . . . . . Total Robot Build Rating . | . . . . . Part Schematics Acquired . | . . . . . Parts Built . | . . . . . Matter . | . . . . . Time . | . . . . . Total Part Build Rating . | . . . . . Parts Repaired . | . . . . . Time . | . . . . . Parts Recycled . | . . . . . Recycled Matter . | . . . . . Retrieved Matter . | . . . . . Retrieved Components . | . . . . . Parts Scanalyzed . | . . . . . Part Schematics Acquired . | . . . . . Parts Damaged . | . . . . . Bothacking | -11 -10 -10 -10 -9 ------------ Run | Scr Mat Min Exi Min Used RIF Installer . | . . . . . Robots Hacked . | . . . . . Non-combat . | . . . . . Combat . | . . . . . Robot Hacks Applied . | . . . . . Relay Couplers Released . | . . . . . Robots Rewired . | . . . . . Allies Hacked . | . . . . . Hacks Repelled . | . . . . . Allies | -11 -10 -10 -10 -9 -------- Run | Scr Mat Min Exi Min Total Allies 3 | . . . . 3 Largest Group 3 | . . . . 3 Highest-Rated Group 40 | . . . . 40 Highest-Rated Ally 16 | . . . . 16 Total Orders 4 | . . . 2 2 EXPLORE 2 | . . . 1 1 RETURN 2 | . . . 1 1 Ally Attacks 9 | . . . . 9 Total Damage 112 | . . . . 112 Kills 1 | . . . . 1 Allies Corrupted . | . . . . . Allies Melted . | . . . . . Intel | -11 -10 -10 -10 -9 ------- Run | Scr Mat Min Exi Min Robot Analysis Total . | . . . . . Derelict Logs Recovered . | . . . . . Drone Launches 2 | . . . 1 1 Drone Recoveries 2 | . . . 1 1 Exploration | -11 -10 -10 -10 -9 ------------- Run | Scr Mat Min Exi Min Turns Passed 939 | 67 193 115 424 140 Spaces Moved 621 | 51 138 95 293 44 Core 14 | 14 . . . . Treads . | . . . . . Legs 607 | 37 138 95 293 44 Wheels . | . . . . . Hover . | . . . . . Flight . | . . . . . Fastest Speed 50 | 50 120 120 120 120 Average Speed 133 | 110 120 120 133 231 Slowest Speed 240 | 120 120 120 240 240 Overloaded Moves . | . . . . . Propulsion Burnouts . | . . . . . Robots Hopped . | . . . . . Cave-ins Triggered . | . . . . . Exploration Rate (%) 48 | 4 20 32 91 96 Regions Visited 4 Branch Regions 3 Pre-discovered Areas . | . . . . . Known Exits Taken 1 | . 1 . . . Unknown Exits Taken 3 | 1 . 1 1 . Scrap Searched . | . . . . . Spaces Dug . | . . . . . Terrain Destroyed . | . . . . . Melee . | . . . . . Projectile . | . . . . . AOE . | . . . . . Terrain Rammed . | . . . . . Walls Destroyed . | . . . . . Machines Disabled . | . . . . . Actions | -11 -10 -10 -10 -9 --------- Run | Scr Mat Min Exi Min Total 711 | 58 154 96 327 76 Wait 45 | . 4 . 20 21 Move 617 | 50 137 94 292 44 Hop . | . . . . . Pick Up 15 | 2 5 1 5 2 Fast Attach 13 | 6 1 . 4 2 Attach 1 | . . . . 1 Detach . | . . . . . Swap . | . . . . . Drop 11 | . 1 1 6 3 Fire 9 | . 6 . . 3 Melee . | . . . . . Ram . | . . . . . Kick . | . . . . . Crush . | . . . . . Escape Stasis . | . . . . . Rewire . | . . . . . Trap . | . . . . . Miscellaneous . | . . . . . Route ------- -11/Scrapyard -10/Materials -10/Mines -10/Exiles (discovered 2 exits: [*Min x2]) -9/Mines (discovered 2 exits: [*Mat x2]) History --------- Turn | Location | Event 24 | -11/Scrapyard | Discovered new exit (range 16) 68 | -11/Scrapyard | Entered Materials 122 | -10/Materials | Discovered new exit (range 9) 161 | -10/Materials | Identified exit to Mines 261 | -10/Materials | Entered Mines 289 | -10/Mines | Received a Rocket Launcher from a helpful Derelict 314 | -10/Mines | Build established: Mutant 370 | -10/Mines | Deemed a non-threat by the Exiles lab entrance 370 | -10/Mines | Discovered new exit (range 5) 376 | -10/Mines | Entered Exiles 406 | -10/Exiles | Met 8R-AWN 426 | -10/Exiles | Met EX-HEX 462 | -10/Exiles | Met EX-BIN 540 | -10/Exiles | Aligned with FarCom system 541 | -10/Exiles | Given EX-Vault access code 570 | -10/Exiles | Opened EX-Vault 574 | -10/Exiles | Found Prototype Device 574 | -10/Exiles | Identified Cloak of Protection 581 | -10/Exiles | Found Prototype Device 581 | -10/Exiles | Identified PSU Rigger 587 | -10/Exiles | Found Prototype Device 587 | -10/Exiles | Identified Supersonic Drone Bay 597 | -10/Exiles | Discovered new exit (range 58) 604 | -10/Exiles | Discovered new exit (range 67) 644 | -10/Exiles | Warned to stay clear of 0b10 Research branches 646 | -10/Exiles | Exiles lab attacked by MAIN.C 800 | -10/Exiles | Stole two prototypes: Cloak of Protection, Supersonic Drone Bay 800 | -10/Exiles | Entered Mines 810 | -9/Mines | Assisted by bots powering up and referring to "LRC-V3" 828 | -9/Mines | Discovered new exit (range 24) 836 | -9/Mines | Discovered new exit (range 39) 887 | -9/Mines | Found a hidden stash of uninstalled traps 907 | -9/Mines | Assembled infested the area 912 | -9/Mines | Assisted by a Guerilla fighting off Assembled 940 | -9/Mines | Self-destructed Last Messages --------------- 00857_ Acquired Humpback. 00858_ K-01 Serf collects debris. 00858_ R-06 Scavenger collects Supersonic Drone Bay. 00863_ K-01 Serf collects debris. 00863_ Acquired Cloak of Protection. 00867_ K-01 Serf collects debris. 00887_ A stash of uninstalled traps is collected here! 00907_ ALERT: Infestation in the mines, dispatching Demolisher response squad. 00912_ A derelict emerges from the shadows: "You need to get out of here! I've been tracking a group of Assembled to figure out where they're coming from, and they're closing on this area, come on!" 00918_ TT-WSW(h): "I'll hold them off! Go on ahead or try to find another way!" 00921_ HV Slug penetrates D-53 Grenadier. 00921_ D-53 Grenadier suffers critical hit. 00921_ D-53 Grenadier destroyed. 00932_ K-01 Serf destroyed. 00935_ Mercenary 2a knocked back. 00935_ Trooper 2a destroyed. Map ----- +----------------------------------------------------+ | ##????????????# #??????## ##??# #?????????## | | ###??????????# #???????## #???# #???#####??# | | ##?????????# #????????## ##### ##### ##?# | | #?????????# #?????????## #?# | | ## #?????##### #####??????####### ##### ### | | ?## #?????# ##???????????# ###?## ## | | ??# ##?????# #???????????# ##?# | | ??# ##?????# ##?????????## ### | | ??## ###???### #??????#### | | ???# ##????## #??????# | | ???# #?????## ##??????# ## | | ???# ##?????## # #???????# ##### ### | | ???# ##?????#### ######### #???##### | | ??## ####?????# #?????## ## | | ?## #?????### ##########????## ##### | | ?# ## #????#### ##????????????# #### | | ## ## #???## & ##??????????## ## | | # ## ### #???# #??????????# | | # #### #?# #???# & ##?????????# | | # #### #?# #####! ??????????## | | # #?# !%% ##??????????### | | ##### ### ###### #????????????## # | | ##??# #????# #?????????????# ## | | ###???# ######????# #?????????????## ## | | ##?????# #?????????## ##??????????????## # | | #??????# #?????????# @ ####????????????## # | | ##??##### ####??????# ##???????????### # | | ????# #??????## %=#???????????# # | | ????# < #???????###### = #???????????### | | ????# l #????????????## #?????????????# # | | ????# #?????????????###gg#?????????????# # | | ????# #??####????????##aa###???????????# # | | ????# g #?## #???????## *aa######??##### # | | ????##### g##### #???????# a a #??# # | | ????????# #### #??????## =%### #??# # | | ????????# ## #??####?# ##?# #### ##### | | ????????# # #### ### ##??# ## #???? | | ????????# ## ### ##??### ## #??## | | ????????# #?## ##???# ## #??# | | ????????### # #??# #???# ## #??# | | ??????????# ## #### #??## ## #???# | | ??????????# #?# ## ##??# $ #???? | | ########### #??# ##???# #####???? | | $ #??## ## ##????# #???????? | | ## ##########???## #### ##?????# #???????? | | ## #?????????????# #??## ##??????# #???????# | | ## #???????####### #???# ##???????# #???????# | | ## #???????# #???## #???????## ##??????# | | ## ###?????# #????## #???????# ##?????# | | #?????# #######?????# #???????# #?????? | +----------------------------------------------------+ Best States ------------- Heat Dissipation 25 Energy Generation 10 Energy Capacity 125 Matter Stores 263 Matter Capacity 300 Sight Range 16 Terrain Scan Density 10 Armor Coverage 150 Resistance: KI 20 Resistance: TH 20 Resistance: EX 20 Resistance: EM 20 Resistance: I 20 Resistance: S 20 Resistance: P 20 Evasion (%) 40 Offensive Hacking 10 Item Schematics ----------------- None Robot Schematics ------------------ None Fabricated ------------ Nothing Alien Tech Used ----------------- None Achievements -------------- None Challenges ------------ None Game ------ Seed MyomerDecoyWell Manual? 0 Play Time 00:09:02 Cumulative 8.2 hours Start 2022.02.26 @ 21:37:59 End 2022.02.26 @ 21:45:28 Sessions 1 Manual Loads 0 Difficulty Adventurer Special Mode None Game No. 6 Rogue 0 Adventurer 6 Explorer 0 Win Type - Total 1 Types 1/0/0/0/0/0/0/0/0 Lore% 30 Gallery% 28 Achievement% 29 Wizard Run 0 Options --------- ASCII 0 Keyboard 0 Movement Mouse Keybinds 0 Fullscreen 1 Font 18/Terminus Map View 76x50 Tactical HUD 1 Map Filters NONE Filters NONE Steam 1 RUN: 5e0e1d06-fc2c-4eac-a756-f835df6639a0